fUST/lending_fUST_20260626
["ID","MTS","AMOUNT","RATE_DAILY","PERIOD"]
[426461202,1782417047000,-1000.0,0.00052054,2]
[426461189,1782417047000,-151.0,0.00052054,120]
[426461168,1782417047000,-1000.0,0.00052054,120]
[426461201,1782417047000,-3000.0,0.00052054,120]
[426461173,1782417047000,-151.0,0.00052054,120]
[426461169,1782417047000,-1000.0,0.00052054,120]
[426461148,1782417047000,-1000.0,0.00052054,120]
[426461144,1782417047000,-151.0,0.00052054,120]
[426461143,1782417047000,-1349.83436133,0.00052054,2]
[426461142,1782417047000,-151.0,0.00052054,120]
[426461149,1782417047000,-1000.0,0.00052054,120]
[426461146,1782417047000,-151.0,0.00052054,120]
[426461145,1782417047000,-151.0,0.00052054,120]
[426461150,1782417047000,-1000.0,0.00052054,120]
[426461160,1782417047000,-1000.0,0.00052054,120]
[426461161,1782417047000,-1000.0,0.00052054,120]
[426461162,1782417047000,-1000.0,0.00052054,120]
[426461151,1782417047000,-1000.0,0.00052054,120]
[426461152,1782417047000,-1000.0,0.00052054,120]
[426461138,1782417047000,-500.0,0.00052054,120]
[426461153,1782417047000,-1000.0,0.00052054,120]
[426461154,1782417047000,-1000.0,0.00052054,120]
[426461174,1782417047000,-329.515693,0.00052054,28]
[426461167,1782417047000,-1000.0,0.00052054,120]
[426461165,1782417047000,-1000.0,0.00052054,120]
[426461163,1782417047000,-1000.0,0.00052054,120]
[426461166,1782417047000,-1000.0,0.00052054,120]
[426461170,1782417047000,-1000.0,0.00052054,120]
[426461159,1782417047000,-1000.0,0.00052054,120]
[426461157,1782417047000,-1000.0,0.00052054,120]
[426461164,1782417047000,-1000.0,0.00052054,120]
[426461172,1782417047000,-1005.590461,0.00052054,120]
[426461158,1782417047000,-1000.0,0.00052054,120]
[426461155,1782417047000,-1000.0,0.00052054,120]
[426461156,1782417047000,-1000.0,0.00052054,120]
[426461229,1782417048000,-200.0,0.00054693,2]
[426461243,1782417048000,-500.0,0.00054794,120]
[426461232,1782417048000,-332.82227025,0.00054693,2]
[426461233,1782417048000,-500.0,0.00054794,120]
[426461234,1782417048000,-500.0,0.00054794,120]
[426461238,1782417048000,-500.0,0.00054794,120]
[426461239,1782417048000,-500.0,0.00054794,120]
[426461242,1782417048000,-342.06,0.00054794,120]
[426461241,1782417048000,-500.0,0.00054794,120]
[426461240,1782417048000,-400.41,0.00054794,120]
[426461244,1782417048000,-500.0,0.00054794,90]
[426461235,1782417048000,-293.39124428,0.00054794,120]
[426461251,1782417048000,-500.0,0.00054794,90]
[426461249,1782417048000,-500.0,0.00054794,11]
[426461248,1782417048000,-500.0,0.00054794,120]
[426461246,1782417048000,-535.89,0.00054794,120]
[426461245,1782417048000,-500.0,0.00054794,120]
[426461250,1782417048000,-500.0,0.00054794,120]
[426461255,1782417048000,-542.65,0.00054794,120]
[426461256,1782417048000,-500.0,0.00054794,14]
[426461259,1782417048000,-500.0,0.00054794,120]
[426461260,1782417048000,-500.0,0.00054794,120]
[426461257,1782417048000,-500.0,0.00054794,120]
[426461254,1782417048000,-500.0,0.00054794,120]
[426461228,1782417048000,-200.0,0.00054693,2]
[426461247,1782417048000,-500.0,0.00054794,120]
[426461231,1782417048000,-200.0,0.00054693,2]
[426461213,1782417048000,-219.206165,0.00053698,21]
[426461227,1782417048000,-200.0,0.00054693,2]
[426461253,1782417048000,-500.0,0.00054794,120]
[426461211,1782417048000,-1871.33659,0.000535,120]
[426461210,1782417048000,-169.688042,0.0005341,120]
[426461204,1782417048000,-174.478521,0.00052174,2]
[426461208,1782417048000,-445.0,0.000531,120]
[426461206,1782417048000,-1200.84903219,0.00053,120]
[426461205,1782417048000,-217.0,0.0005249,30]
[426461207,1782417048000,-2213.0,0.000531,120]
[426461209,1782417048000,-1130.60179465,0.00053263,6]
[426461212,1782417048000,-1863.252405,0.00053698,120]
[426461220,1782417048000,-217.0,0.0005379,30]
[426461216,1782417048000,-2084.010464,0.00053698,120]
[426461221,1782417048000,-300.0,0.00054,120]
[426461218,1782417048000,-249.74247,0.00053698,21]
[426461215,1782417048000,-249.74247,0.00053698,120]
[426461223,1782417048000,-20205.39994367,0.00054394,120]
[426461219,1782417048000,-254.9014,0.00053698,21]
[426461214,1782417048000,-264.283258,0.00053698,21]
[426461222,1782417048000,-696.22240632,0.00054,120]
[426461217,1782417048000,-245.177701,0.00053698,21]
[426461224,1782417048000,-5000.0,0.000545,120]
[426461226,1782417048000,-200.0,0.00054693,2]
[426461225,1782417048000,-5000.0,0.000545,120]
[426461237,1782417048000,-396.58520249,0.00054794,120]
[426461236,1782417048000,-250.08926087,0.00054794,120]
[426461230,1782417048000,-200.0,0.00054693,2]
[426461252,1782417048000,-372.61882835,0.00054794,120]
[426461258,1782417048000,-500.0,0.00054794,120]
[426461263,1782417048000,-500.0,0.00054794,120]
[426461297,1782417048000,-500.0,0.00054794,120]
[426461296,1782417048000,-500.0,0.00054794,120]
[426461294,1782417048000,-500.0,0.00054794,120]
[426461295,1782417048000,-500.0,0.00054794,11]
[426461300,1782417048000,-500.0,0.00054794,120]
[426461292,1782417048000,-280.10582815,0.00054794,120]
[426461299,1782417048000,-500.0,0.00054794,120]
[426461293,1782417048000,-213.303905,0.00054794,120]
[426461298,1782417048000,-500.0,0.00054794,11]
[426461302,1782417048000,-500.0,0.00054794,120]
[426461307,1782417048000,-344.22,0.00054794,120]
[426461306,1782417048000,-500.0,0.00054794,120]
[426461301,1782417048000,-500.0,0.00054794,11]
[426461303,1782417048000,-500.0,0.00054794,90]
[426461311,1782417048000,-420.10093093,0.00054794,120]
[426461304,1782417048000,-563.08,0.00054794,120]
[426461305,1782417048000,-500.0,0.00054794,120]
[426461309,1782417048000,-500.0,0.00054794,120]
[426461310,1782417048000,-500.0,0.00054794,11]
[426461314,1782417048000,-500.0,0.00054794,120]
[426461313,1782417048000,-500.0,0.00054794,120]
[426461312,1782417048000,-500.0,0.00054794,120]
[426461316,1782417048000,-500.0,0.00054794,120]
[426461315,1782417048000,-520.36357014,0.00054794,120]
[426461265,1782417048000,-282.20036448,0.00054794,120]
[426461317,1782417048000,-500.0,0.00054794,120]
[426461308,1782417048000,-500.0,0.00054794,120]
[426461290,1782417048000,-810.65,0.00054794,120]
[426461275,1782417048000,-500.0,0.00054794,120]
[426461280,1782417048000,-500.0,0.00054794,120]
[426461261,1782417048000,-500.0,0.00054794,90]
[426461262,1782417048000,-500.0,0.00054794,120]
[426461266,1782417048000,-500.0,0.00054794,120]
[426461291,1782417048000,-500.0,0.00054794,120]
[426461267,1782417048000,-500.0,0.00054794,120]
[426461268,1782417048000,-500.0,0.00054794,11]
[426461274,1782417048000,-500.0,0.00054794,120]
[426461264,1782417048000,-500.0,0.00054794,120]
[426461270,1782417048000,-500.0,0.00054794,120]
[426461272,1782417048000,-500.0,0.00054794,120]
[426461271,1782417048000,-500.0,0.00054794,120]
[426461269,1782417048000,-500.0,0.00054794,90]
[426461273,1782417048000,-500.0,0.00054794,10]
[426461277,1782417048000,-500.0,0.00054794,120]
[426461276,1782417048000,-500.0,0.00054794,120]
[426461282,1782417048000,-413.24,0.00054794,120]
[426461285,1782417048000,-500.0,0.00054794,120]
[426461284,1782417048000,-163.21,0.00054794,120]
[426461281,1782417048000,-500.0,0.00054794,120]
[426461286,1782417048000,-646.24,0.00054794,120]
[426461289,1782417048000,-500.0,0.00054794,90]
[426461278,1782417048000,-500.0,0.00054794,120]
[426461287,1782417048000,-500.0,0.00054794,11]
[426461288,1782417048000,-500.0,0.00054794,120]
[426461283,1782417048000,-500.0,0.00054794,120]
[426461279,1782417048000,-500.0,0.00054794,120]
[426461360,1782417049000,-515.80706824,0.00054794,120]
[426461355,1782417049000,-500.0,0.00054794,120]
[426461363,1782417049000,-500.0,0.00054794,120]
[426461356,1782417049000,-730.63,0.00054794,120]
[426461359,1782417049000,-500.0,0.00054794,120]
[426461357,1782417049000,-500.0,0.00054794,120]
[426461348,1782417049000,-500.0,0.00054794,120]
[426461351,1782417049000,-500.0,0.00054794,120]
[426461349,1782417049000,-500.0,0.00054794,120]
[426461345,1782417049000,-1006.86,0.00054794,120]
[426461350,1782417049000,-561.24,0.00054794,120]
[426461354,1782417049000,-500.0,0.00054794,120]
[426461365,1782417049000,-500.0,0.00054794,120]
[426461371,1782417049000,-500.0,0.00054794,120]
[426461364,1782417049000,-500.0,0.00054794,120]
[426461361,1782417049000,-509.04085,0.00054794,120]
[426461366,1782417049000,-500.0,0.00054794,120]
[426461368,1782417049000,-500.0,0.00054794,120]
[426461378,1782417049000,-500.0,0.00054794,120]
[426461367,1782417049000,-500.0,0.00054794,120]
[426461369,1782417049000,-500.0,0.00054794,120]
[426461372,1782417049000,-500.0,0.00054794,120]
[426461370,1782417049000,-500.0,0.00054794,120]
[426461373,1782417049000,-500.0,0.00054794,120]
[426461374,1782417049000,-500.0,0.00054794,120]
[426461346,1782417049000,-500.0,0.00054794,120]
[426461358,1782417049000,-500.0,0.00054794,120]
[426461343,1782417049000,-870.11,0.00054794,90]
[426461336,1782417049000,-500.0,0.00054794,120]
[426461341,1782417049000,-500.0,0.00054794,120]
[426461326,1782417049000,-500.0,0.00054794,2]
[426461319,1782417049000,-500.0,0.00054794,120]
[426461318,1782417049000,-500.0,0.00054794,120]
[426461324,1782417049000,-500.0,0.00054794,2]
[426461321,1782417049000,-500.0,0.00054794,120]
[426461320,1782417049000,-500.0,0.00054794,120]
[426461322,1782417049000,-500.0,0.00054794,120]
[426461325,1782417049000,-500.0,0.00054794,2]
[426461323,1782417049000,-500.0,0.00054794,120]
[426461329,1782417049000,-500.0,0.00054794,120]
[426461330,1782417049000,-500.0,0.00054794,120]
[426461327,1782417049000,-500.0,0.00054794,120]
[426461328,1782417049000,-500.0,0.00054794,120]
[426461331,1782417049000,-500.0,0.00054794,120]
[426461333,1782417049000,-623.13,0.00054794,120]
[426461375,1782417049000,-165.35796685,0.00054794,120]
[426461334,1782417049000,-500.0,0.00054794,120]
[426461338,1782417049000,-316.82159631,0.00054794,120]
[426461335,1782417049000,-961.41,0.00054794,120]
[426461332,1782417049000,-500.0,0.00054794,6]
[426461337,1782417049000,-500.0,0.00054794,120]
[426461339,1782417049000,-500.0,0.00054794,120]
[426461340,1782417049000,-500.0,0.00054794,120]
[426461342,1782417049000,-626.41,0.00054794,120]
[426461352,1782417049000,-500.0,0.00054794,120]
[426461353,1782417049000,-500.0,0.00054794,120]
[426461344,1782417049000,-500.0,0.00054794,120]
[426461347,1782417049000,-500.0,0.00054794,120]
[426461376,1782417049000,-500.0,0.00054794,120]
[426461362,1782417049000,-500.0,0.00054794,120]
[426461379,1782417049000,-500.0,0.00054794,120]
[426461409,1782417049000,-513.40286817,0.00054794,120]
[426461412,1782417049000,-500.0,0.00054794,120]
[426461407,1782417049000,-500.0,0.00054794,120]
[426461411,1782417049000,-500.0,0.00054794,120]
[426461415,1782417049000,-500.0,0.00054794,120]
[426461418,1782417049000,-500.0,0.00054794,120]
[426461417,1782417049000,-500.0,0.00054794,120]
[426461416,1782417049000,-500.0,0.00054794,11]
[426461419,1782417049000,-919.31,0.00054794,90]
[426461421,1782417049000,-508.58466234,0.00054794,120]
[426461431,1782417049000,-508.2768255,0.00054794,120]
[426461433,1782417049000,-501.14837005,0.00054794,30]
[426461432,1782417049000,-594.65127422,0.00054794,120]
[426461410,1782417049000,-508.9141025,0.00054794,120]
[426461422,1782417049000,-512.35462565,0.00054794,120]
[426461420,1782417049000,-500.0,0.00054794,120]
[426461425,1782417049000,-500.0,0.00054794,120]
[426461429,1782417049000,-500.0,0.00054794,120]
[426461430,1782417049000,-500.0,0.00054794,120]
[426461426,1782417049000,-503.7141754,0.00054794,120]
[426461427,1782417049000,-501.26467879,0.00054794,120]
[426461428,1782417049000,-505.13637702,0.00054794,120]
[426461434,1782417049000,-512.70082566,0.00054794,120]
[426461436,1782417049000,-500.0,0.00054794,120]
[426461435,1782417049000,-500.0,0.00054794,120]
[426461437,1782417049000,-533.51398148,0.00054794,120]
[426461438,1782417049000,-500.0,0.00054794,120]
[426461377,1782417049000,-500.0,0.00054794,120]
[426461424,1782417049000,-509.18422547,0.00054794,120]
[426461414,1782417049000,-508.20778105,0.00054794,120]
[426461423,1782417049000,-500.0,0.00054794,120]
[426461406,1782417049000,-640.52,0.00054794,120]
[426461413,1782417049000,-500.0,0.00054794,120]
[426461382,1782417049000,-500.0,0.00054794,120]
[426461386,1782417049000,-500.0,0.00054794,120]
[426461387,1782417049000,-500.0,0.00054794,120]
[426461384,1782417049000,-500.0,0.00054794,120]
[426461385,1782417049000,-500.0,0.00054794,120]
[426461388,1782417049000,-500.0,0.00054794,120]
[426461383,1782417049000,-500.0,0.00054794,120]
[426461380,1782417049000,-500.0,0.00054794,120]
[426461389,1782417049000,-500.0,0.00054794,120]
[426461390,1782417049000,-510.73407118,0.00054794,120]
[426461392,1782417049000,-519.50716035,0.00054794,120]
[426461391,1782417049000,-500.0,0.00054794,120]
[426461394,1782417049000,-881.35,0.00054794,120]
[426461381,1782417049000,-722.33,0.00054794,120]
[426461405,1782417049000,-500.0,0.00054794,120]
[426461404,1782417049000,-500.0,0.00054794,120]
[426461397,1782417049000,-500.0,0.00054794,120]
[426461403,1782417049000,-500.0,0.00054794,120]
[426461401,1782417049000,-500.0,0.00054794,120]
[426461398,1782417049000,-500.0,0.00054794,120]
[426461399,1782417049000,-500.0,0.00054794,120]
[426461408,1782417049000,-1420.0,0.00054794,120]
[426461393,1782417049000,-500.0,0.00054794,120]
[426461402,1782417049000,-534.86,0.00054794,120]
[426461400,1782417049000,-500.0,0.00054794,120]
[426461396,1782417049000,-500.0,0.00054794,120]
[426461395,1782417049000,-500.0,0.00054794,120]
[426461480,1782417050000,-500.0,0.00054794,120]
[426461484,1782417050000,-500.0,0.00054794,120]
[426461482,1782417050000,-500.0,0.00054794,120]
[426461470,1782417050000,-500.0,0.00054794,120]
[426461487,1782417050000,-508.66313622,0.00054794,120]
[426461478,1782417050000,-500.0,0.00054794,120]
[426461475,1782417050000,-500.0,0.00054794,120]
[426461486,1782417050000,-514.84157498,0.00054794,120]
[426461476,1782417050000,-500.0,0.00054794,120]
[426461471,1782417050000,-519.91358578,0.00054794,120]
[426461481,1782417050000,-500.0,0.00054794,60]
[426461474,1782417050000,-500.0,0.00054794,120]
[426461479,1782417050000,-500.0,0.00054794,120]
[426461483,1782417050000,-500.0,0.00054794,120]
[426461493,1782417050000,-2845.75,0.00054794,120]
[426461485,1782417050000,-512.87335084,0.00054794,120]
[426461488,1782417050000,-500.0,0.00054794,120]
[426461498,1782417050000,-500.0,0.00054794,90]
[426461495,1782417050000,-310.2100736,0.00054794,11]
[426461496,1782417050000,-500.0,0.00054794,120]
[426461494,1782417050000,-2046.74,0.00054794,120]
[426461491,1782417050000,-500.0,0.00054794,120]
[426461492,1782417050000,-500.0,0.00054794,120]
[426461489,1782417050000,-500.0,0.00054794,120]
[426461497,1782417050000,-500.0,0.00054794,31]
[426461499,1782417050000,-500.0,0.00054794,120]
[426461500,1782417050000,-500.0,0.00054794,120]
[426461473,1782417050000,-536.33533451,0.00054794,120]
[426461477,1782417050000,-500.0,0.00054794,120]
[426461465,1782417050000,-500.0,0.00054794,120]
[426461442,1782417050000,-500.0,0.00054794,120]
[426461472,1782417050000,-500.0,0.00054794,120]
[426461490,1782417050000,-500.0,0.00054794,120]
[426461440,1782417050000,-500.0,0.00054794,120]
[426461441,1782417050000,-500.0,0.00054794,120]
[426461439,1782417050000,-500.0,0.00054794,120]
[426461447,1782417050000,-500.0,0.00054794,120]
[426461443,1782417050000,-500.0,0.00054794,120]
[426461448,1782417050000,-500.0,0.00054794,120]
[426461449,1782417050000,-500.0,0.00054794,120]
[426461446,1782417050000,-500.0,0.00054794,120]
[426461445,1782417050000,-500.0,0.00054794,120]
[426461444,1782417050000,-500.0,0.00054794,120]
[426461451,1782417050000,-500.0,0.00054794,120]
[426461461,1782417050000,-500.0,0.00054794,120]
[426461462,1782417050000,-591.05867661,0.00054794,120]
[426461450,1782417050000,-525.8454848,0.00054794,120]
[426461452,1782417050000,-500.0,0.00054794,120]
[426461460,1782417050000,-500.0,0.00054794,120]
[426461455,1782417050000,-500.0,0.00054794,120]
[426461457,1782417050000,-500.0,0.00054794,120]
[426461458,1782417050000,-500.0,0.00054794,120]
[426461456,1782417050000,-500.0,0.00054794,120]
[426461453,1782417050000,-500.0,0.00054794,120]
[426461459,1782417050000,-500.0,0.00054794,120]
[426461454,1782417050000,-500.0,0.00054794,120]
[426461468,1782417050000,-500.0,0.00054794,120]
[426461463,1782417050000,-500.0,0.00054794,120]
[426461467,1782417050000,-509.32,0.00054794,120]
[426461466,1782417050000,-500.0,0.00054794,120]
[426461464,1782417050000,-500.0,0.00054794,120]
[426461469,1782417050000,-500.0,0.00054794,120]
[426461501,1782417050000,-500.0,0.00054794,120]
[426461523,1782417050000,-563.1906076,0.00054794,120]
[426461513,1782417050000,-500.0,0.00054794,120]
[426461536,1782417050000,-500.0,0.00054794,120]
[426461538,1782417050000,-500.0,0.00054794,120]
[426461535,1782417050000,-301.9,0.00054794,120]
[426461537,1782417050000,-518.13,0.00054794,120]
[426461541,1782417050000,-605.1,0.00054794,120]
[426461543,1782417050000,-500.0,0.00054794,120]
[426461544,1782417050000,-500.0,0.00054794,120]
[426461542,1782417050000,-500.0,0.00054794,120]
[426461551,1782417050000,-500.0,0.00054794,120]
[426461549,1782417050000,-500.0,0.00054794,120]
[426461545,1782417050000,-500.0,0.00054794,120]
[426461552,1782417050000,-500.0,0.00054794,120]
[426461550,1782417050000,-500.0,0.00054794,120]
[426461547,1782417050000,-500.0,0.00054794,120]
[426461553,1782417050000,-500.0,0.00054794,120]
[426461548,1782417050000,-500.0,0.00054794,120]
[426461555,1782417050000,-500.0,0.00054794,120]
[426461565,1782417050000,-814.24417907,0.00054794,2]
[426461566,1782417050000,-1000.0,0.00054794,2]
[426461554,1782417050000,-500.0,0.00054794,120]
[426461557,1782417050000,-639.1,0.00054794,120]
[426461556,1782417050000,-500.0,0.00054794,120]
[426461558,1782417050000,-500.0,0.00054794,120]
[426461564,1782417050000,-500.0,0.00054794,120]
[426461561,1782417050000,-500.0,0.00054794,120]
[426461562,1782417050000,-500.0,0.00054794,120]
[426461560,1782417050000,-500.0,0.00054794,90]
[426461559,1782417050000,-500.0,0.00054794,120]
[426461503,1782417050000,-500.0,0.00054794,120]
[426461534,1782417050000,-500.0,0.00054794,120]
[426461539,1782417050000,-500.0,0.00054794,120]
[426461546,1782417050000,-195.12,0.00054794,120]
[426461540,1782417050000,-500.0,0.00054794,120]
[426461514,1782417050000,-500.0,0.00054794,120]
[426461532,1782417050000,-500.0,0.00054794,120]
[426461502,1782417050000,-500.0,0.00054794,120]
[426461506,1782417050000,-500.0,0.00054794,120]
[426461505,1782417050000,-500.0,0.00054794,120]
[426461504,1782417050000,-500.0,0.00054794,120]
[426461511,1782417050000,-500.0,0.00054794,120]
[426461507,1782417050000,-500.0,0.00054794,120]
[426461510,1782417050000,-500.0,0.00054794,120]
[426461508,1782417050000,-500.0,0.00054794,120]
[426461509,1782417050000,-500.0,0.00054794,120]
[426461515,1782417050000,-500.0,0.00054794,120]
[426461517,1782417050000,-500.0,0.00054794,120]
[426461519,1782417050000,-500.0,0.00054794,120]
[426461516,1782417050000,-500.0,0.00054794,120]
[426461512,1782417050000,-500.0,0.00054794,120]
[426461521,1782417050000,-500.0,0.00054794,120]
[426461533,1782417050000,-500.0,0.00054794,120]
[426461522,1782417050000,-500.0,0.00054794,120]
[426461531,1782417050000,-500.0,0.00054794,120]
[426461530,1782417050000,-500.0,0.00054794,90]
[426461525,1782417050000,-500.0,0.00054794,11]
[426461563,1782417050000,-500.0,0.00054794,120]
[426461527,1782417050000,-500.0,0.00054794,120]
[426461529,1782417050000,-500.0,0.00054794,120]
[426461528,1782417050000,-500.0,0.00054794,120]
[426461518,1782417050000,-500.0,0.00054794,120]
[426461520,1782417050000,-500.0,0.00054794,120]
[426461526,1782417050000,-500.0,0.00054794,90]
[426461524,1782417050000,-500.0,0.00054794,120]
[426461590,1782417051000,-500.0,0.00054795,120]
[426461586,1782417051000,-500.0,0.00054795,120]
[426461587,1782417051000,-500.0,0.00054795,120]
[426461585,1782417051000,-500.0,0.00054795,120]
[426461583,1782417051000,-500.0,0.00054795,120]
[426461591,1782417051000,-500.0,0.00054795,120]
[426461588,1782417051000,-500.0,0.00054795,120]
[426461592,1782417051000,-500.0,0.00054795,120]
[426461595,1782417051000,-90.10475356,0.00054795,120]
[426461594,1782417051000,-500.0,0.00054795,120]
[426461584,1782417051000,-500.0,0.00054795,120]
[426461589,1782417051000,-500.0,0.00054795,120]
[426461581,1782417051000,-500.0,0.00054795,120]
[426461567,1782417051000,-1000.0,0.00054794,2]
[426461575,1782417051000,-500.0,0.00054795,120]
[426461579,1782417051000,-500.0,0.00054795,120]
[426461574,1782417051000,-500.0,0.00054795,120]
[426461577,1782417051000,-500.0,0.00054795,120]
[426461578,1782417051000,-500.0,0.00054795,120]
[426461580,1782417051000,-500.0,0.00054795,120]
[426461573,1782417051000,-500.0,0.00054795,120]
[426461569,1782417051000,-1000.0,0.00054794,2]
[426461576,1782417051000,-500.0,0.00054795,120]
[426461572,1782417051000,-1000.0,0.00054795,120]
[426461571,1782417051000,-500.0,0.00054795,2]
[426461570,1782417051000,-663.0,0.00054795,120]
[426461568,1782417051000,-3000.0,0.00054794,120]
[426461593,1782417051000,-500.0,0.00054795,120]
[426461582,1782417051000,-500.0,0.00054795,120]
[426461597,1782417051000,-151.0,0.00049,120]
[426461608,1782417051000,-313.22950368,0.00054795,120]
[426461596,1782417051000,-151.0,0.00049,120]
[426461628,1782417051000,-9.61777085,0.00055,120]
[426461627,1782417051000,-1686.50762971,0.00055,120]
[426461625,1782417051000,-1992.03990995,0.000548,120]
[426461626,1782417051000,-168.56084855,0.000549,120]
[426461624,1782417051000,-1695.17488842,0.000548,120]
[426461623,1782417051000,-390.94940258,0.000548,120]
[426461622,1782417051000,-203.928004,0.00052054,120]
[426461621,1782417051000,-151.0,0.00052054,120]
[426461620,1782417051000,-151.0,0.00052054,120]
[426461619,1782417051000,-151.0,0.00050864,120]
[426461618,1782417051000,-151.0,0.00050864,120]
[426461617,1782417051000,-151.0,0.00050864,120]
[426461615,1782417051000,-151.0,0.0004943,120]
[426461609,1782417051000,-378.32132154,0.000548,120]
[426461616,1782417051000,-183.947705,0.0004943,120]
[426461604,1782417051000,-409.89524644,0.00054795,120]
[426461599,1782417051000,-151.0,0.00049315,120]
[426461600,1782417051000,-151.0,0.0004943,120]
[426461601,1782417051000,-151.0,0.0004943,120]
[426461605,1782417051000,-500.0,0.00054795,120]
[426461602,1782417051000,-151.0,0.00050864,120]
[426461610,1782417051000,-151.0,0.00049,120]
[426461598,1782417051000,-151.0,0.00049315,120]
[426461606,1782417051000,-500.0,0.00054795,120]
[426461607,1782417051000,-500.0,0.00054795,120]
[426461614,1782417051000,-151.0,0.0004943,120]
[426461612,1782417051000,-151.0,0.00049315,120]
[426461611,1782417051000,-151.0,0.00049,120]
[426461613,1782417051000,-151.0,0.00049315,120]
[426461603,1782417051000,-151.0,0.00052054,120]
[426461630,1782417097000,292.35841012,0.000273,30]
[426461631,1782417148000,164.0,0.00027769,120]
[426461632,1782417149000,164.0,0.00028769,120]
[426461633,1782417151000,164.0,0.00029769,120]
[426461635,1782417198000,167.06722119,0.00027804,120]
[426461648,1782417412000,157.0,0.00027804,120]
[426461649,1782417413000,157.0,0.00028804,120]
[426461650,1782417414000,157.0,0.00029804,120]
[426461652,1782417421000,157.0,0.00023902,30]
[426461653,1782417422000,157.0,0.00024902,30]
[426461654,1782417424000,157.0,0.00025902,30]
[426461655,1782417425000,157.0,0.00026902,30]
[426461656,1782417427000,157.0,0.00027902,30]
[426461657,1782417428000,157.0,0.00028902,30]
[426461658,1782417429000,157.0,0.00029902,30]
[426461659,1782417440000,6080.0,0.00027804,30]
[426461660,1782417447000,42078.1231791,7.6e-05,2]
[426461663,1782417456000,286.34336211,0.00027804,120]
[426461664,1782417461000,501.52675591,0.00027804,120]
[426461665,1782417553000,615.908,0.000101,13]
[426461668,1782417758000,1000.0,0.00027397,120]
[426461669,1782417759000,1000.0,0.00030137,120]
[426461670,1782417823000,662.68064797,0.000101,13]
[426461676,1782418068000,1000.0,0.00030137,120]
[426461675,1782418068000,1000.0,0.00027397,120]
[426462277,1782418242000,-500.0,0.0001,2]
[426462273,1782418242000,-177.0447202,0.0001,2]
[426462275,1782418242000,-500.0,0.0001,2]
[426462279,1782418242000,-301.54015525,0.0001,2]
[426462283,1782418242000,-492.03203444,0.00012,2]
[426462281,1782418242000,-7.10208537,0.0001,2]
[426462699,1782418247000,-443.0828861,0.00012499,2]
[426462688,1782418247000,-10459.22616283,0.00012,2]
[426462698,1782418247000,-2.93494908,0.00012,2]
[426462700,1782418247000,-539.04651617,0.00012499,2]
[426462705,1782418247000,-5682.0477318,0.0001646,2]
[426462701,1782418247000,-500.0,0.00012499,2]
[426462702,1782418247000,-11099.6169041,0.000125,2]
[426462704,1782418247000,-158.34785874,0.00013605,2]
[426462703,1782418247000,-157.0,0.00012605,2]